bitfinex/quotes_ETHUSD_20250508
["timestamp","ask_amount","ask_price","bid_price","bid_amount"]
[1746726122287,4.89021468,2044.9,2044.8,3.307]
[1746726122488,0.7919,2044.9,2044.2,4.89177523]
[1746726122661,0.7919,2044.9,2044.3,3.307]
[1746726122662,4.89107957,2044.6,2044.3,3.307]
[1746726123057,4.89084262,2044.7,2044.4,2.86818444]
[1746726123262,4.93935408,2044.8,2044.6,3.69268444]
[1746726123263,4.89050286,2044.8,2044.6,3.69268444]
[1746726123475,4.89050286,2044.8,2044.7,3.304]
[1746726124084,4.89021666,2044.9,2044.7,3.304]
[1746726124285,5.6667769,2045.3,2044.8,3.304]
[1746726124594,4.88985354,2045.1,2044.8,3.304]
[1746726124986,4.89093221,2044.6,2044.5,3.304]
[1746726125302,4.89077435,2044.7,2044.5,3.304]
[1746726125303,4.89078787,2044.7,2044.5,3.304]
[1746726125592,4.93967278,2044.6,2044.5,3.304]
[1746726126095,0.04874057,2044.6,2044.5,3.304]
[1746726126304,4.89093221,2044.6,2044.5,3.304]
[1746726126463,0.8257,2044.9,2044.5,3.304]
[1746726126797,4.89087271,2044.7,2044.5,4.0694]
[1746726127022,4.89093221,2044.6,2044.4,4.0546]
[1746726127300,4.89071073,2044.7,2044.5,3.304]
[1746726127596,4.89063688,2044.8,2044.5,3.304]
[1746726128101,4.89081927,2044.7,2044.5,3.304]
[1746726128309,4.89081927,2044.7,2044.6,3.304]
[1746726129182,0.04874057,2044.8,2044.6,3.304]
[1746726129376,9.78126667,2044.8,2044.6,3.304]
[1746726129597,4.89041705,2044.9,2044.6,3.304]
[1746726129812,4.890467,2044.8,2044.6,3.304]
[1746726130023,4.89069301,2044.7,2044.6,3.304]
[1746726130513,4.89069301,2044.7,2044.4,4.0546]
[1746726130514,0.04874057,2044.7,2044.4,0.7506]
[1746726130716,4.89104477,2044.6,2044.4,0.7506]
[1746726131018,4.89104477,2044.6,2044.5,6.609]
[1746726131019,4.89093221,2044.6,2044.5,6.609]
[1746726131418,4.93959048,2044.7,2044.5,6.609]
[1746726131599,4.89093221,2044.6,2044.5,6.609]
[1746726131798,5.65926689,2045.1,2044.5,6.609]
[1746726132128,4.89078561,2044.7,2044.5,6.609]
[1746726132411,0.04874057,2044.9,2044.2,0.7808]
[1746726132412,4.89178154,2044.3,2044.2,0.7808]
[1746726132611,4.89178154,2044.3,2044.2,7.3898]
[1746726133517,4.89178154,2044.3,2044.2,6.609]
[1746726133718,4.89152451,2044.4,2044.2,6.609]
[1746726134024,4.89127208,2044.5,2044.2,6.609]
[1746726134181,4.89104858,2044.6,2044.3,0.795]
[1746726135486,4.8908322,2044.7,2044.3,0.84390988]
[1746726135685,4.8908322,2044.7,2044.3,5.6866239]
[1746726135895,3.04874057,2044.7,2044.3,0.795]
[1746726136124,4.89126489,2044.5,2044.3,0.795]
[1746726136308,4.89107265,2044.6,2044.3,0.795]
[1746726136492,7.93963238,2044.7,2044.3,0.795]
[1746726136691,3.04874057,2044.7,2044.3,0.795]
[1746726136923,4.89047905,2044.8,2044.4,4.89129473]
[1746726137124,4.89047905,2044.8,2044.4,12.30004743]
[1746726137332,0.25441124,2045.1,2044.6,5.91974406]
[1746726137530,0.7878,2045.4,2044.7,11.54855276]
[1746726137715,0.7878,2045.4,2044.9,0.7514]
[1746726137716,4.93808264,2045.3,2044.9,0.7514]
[1746726137917,0.30318357,2045.5,2045.0,10.10705345]
[1746726138118,4.88923238,2045.4,2045.0,5.21724045]
[1746726138315,4.88923238,2045.4,2045.0,0.04889639]
[1746726138492,4.88912675,2045.4,2045.0,4.93883168]
[1746726138822,4.93769574,2045.5,2045.0,6.51372378]
[1746726139038,4.88916406,2045.4,2045.0,1.62378849]
[1746726139197,4.88916406,2045.4,2045.0,6.51371628]
[1746726139391,4.88891786,2045.5,2045.0,6.51371628]
[1746726139595,0.04874057,2045.6,2045.1,0.8241]
[1746726139793,0.25440305,2045.8,2045.5,4.88869632]
[1746726139993,4.88803,2045.9,2045.4,10.8796128]
[1746726140304,4.88848563,2045.7,2045.4,0.8224]
[1746726140517,4.88878024,2045.5,2045.4,3.303]
[1746726141028,4.88901926,2045.4,2045.3,3.305]
[1746726141256,4.88888506,2045.5,2045.4,3.303]
[1746726141596,4.88844033,2045.7,2045.4,3.303]
[1746726141907,5.93898657,2046.1,2045.5,5.71058439]
[1746726142104,9.82423667,2046.0,2045.5,5.71058439]
[1746726142326,4.88793234,2045.9,2045.5,0.8219]
[1746726142490,4.93642324,2046.0,2045.5,5.71060184]
[1746726142491,4.93644683,2046.0,2045.5,5.71060184]
[1746726142937,4.88784232,2045.9,2045.5,5.71060184]
[1746726143238,4.88784232,2045.9,2045.6,1.5336573]
[1746726144504,4.93647309,2046.0,2045.6,1.5336573]
[1746726144838,4.88786271,2045.9,2045.6,1.5336573]
[1746726145704,4.88816199,2045.8,2045.6,1.5336573]
[1746726146026,0.04874057,2046.0,2045.6,4.88851375]
[1746726146228,4.88784714,2045.9,2045.5,5.71056747]
[1746726146535,4.88784714,2045.9,2045.5,0.8219]
[1746726147815,9.77590714,2045.9,2045.5,3.69070912]
[1746726148142,4.88812564,2045.8,2045.5,3.69070912]
[1746726148501,4.88812564,2045.8,2045.5,5.32493464]
[1746726148999,9.77641585,2045.8,2045.6,3.302]
[1746726149196,4.88849444,2045.7,2045.3,4.085]
[1746726149400,4.88849444,2045.7,2045.4,3.301]
[1746726150219,4.88849444,2045.7,2045.3,4.085]
[1746726150403,4.88854978,2045.6,2045.4,3.301]
[1746726150604,4.88854978,2045.6,2045.5,3.301]
[1746726151013,4.93689687,2045.8,2045.5,3.301]
[1746726151235,4.88834608,2045.7,2045.5,3.301]
[1746726151710,0.04874057,2045.8,2045.5,3.301]
[1746726151910,4.88854125,2045.6,2045.5,3.301]
[1746726152119,4.88848852,2045.7,2045.5,3.301]
[1746726152750,4.93703724,2045.8,2045.5,3.301]
[1746726152952,4.88797609,2045.9,2045.5,3.301]
[1746726153142,7.93639186,2046.0,2045.5,9.70887826]
[1746726153445,4.88798537,2045.9,2045.5,4.82027]
[1746726153852,4.88773752,2046.0,2045.7,0.8299]
[1746726154153,4.88710528,2046.3,2045.8,11.10960658]
[1746726154337,4.88712081,2046.2,2046.0,2.86880912]
[1746726154551,4.88712081,2046.2,2046.1,3.301]
[1746726154923,4.88627813,2046.6,2046.1,4.1309]
[1746726155143,4.88647237,2046.5,2046.3,2.86880912]
[1746726155347,4.88647237,2046.5,2046.4,3.301]
[1746726156731,4.88647237,2046.5,2046.2,6.601]
[1746726156732,4.88686898,2046.3,2046.2,6.601]
[1746726156930,4.93560955,2046.3,2046.2,6.601]
[1746726157736,5.68560955,2046.3,2046.2,6.601]
[1746726159228,5.68560955,2046.3,2046.2,3.301]
[1746726160640,4.93560955,2046.3,2046.2,3.301]
[1746726160840,4.88686898,2046.3,2046.2,3.301]
[1746726163252,4.88630519,2046.6,2046.2,14.1750669]
[1746726163457,0.04874057,2046.8,2046.2,14.1750669]
[1746726163660,4.88624632,2046.6,2046.3,1.90623332]
[1746726164280,0.04874057,2046.8,2046.4,5.16105943]
[1746726164477,4.88576617,2046.8,2046.5,4.1276]
[1746726164685,4.88510683,2047.1,2046.6,10.04709266]
[1746726164975,4.88458455,2047.3,2046.9,0.8173]
[1746726165148,4.88458455,2047.3,2047.0,3.299]
[1746726165529,4.88462645,2047.3,2047.0,3.299]
[1746726165731,4.88495921,2047.1,2047.0,3.299]
[1746726166365,4.88495921,2047.1,2047.0,6.599]
[1746726166675,4.88481924,2047.2,2047.0,6.599]
[1746726166877,4.88495921,2047.1,2047.0,6.599]
[1746726167178,4.88481891,2047.2,2047.0,7.34063]
[1746726167481,4.88495921,2047.1,2047.0,7.34063]
[1746726167783,4.88484344,2047.2,2047.0,7.34063]
[1746726167983,4.88495921,2047.1,2047.0,6.599]
[1746726168277,4.8847831,2047.2,2047.0,6.599]
[1746726168440,4.88432069,2047.4,2047.0,6.599]
[1746726168641,4.88458066,2047.3,2047.0,6.599]
[1746726168950,4.88458066,2047.3,2047.0,6.64784546]
[1746726169154,9.76927609,2047.3,2047.0,6.64784546]
[1746726169338,4.88474924,2047.2,2047.0,6.599]
[1746726170775,4.88461237,2047.3,2047.1,0.74163]
[1746726170982,0.04874057,2047.5,2047.0,6.599]
[1746726170983,4.9327504,2047.5,2047.0,6.599]
[1746726171679,3.04874057,2047.5,2047.0,6.599]
[1746726171885,4.88473622,2047.2,2047.0,6.599]
[1746726172445,9.76969342,2047.2,2047.0,6.599]
[1746726172783,4.88495921,2047.1,2047.0,6.599]
[1746726173375,4.88495921,2047.1,2047.0,6.596]
[1746726173953,4.88519785,2047.0,2046.9,0.8173]
[1746726174167,4.88504295,2047.1,2046.9,6.595]
[1746726174391,4.88508055,2047.1,2046.9,7.87050979]
[1746726175069,4.88426715,2047.4,2047.0,10.83193232]
[1746726175281,4.88495921,2047.1,2047.0,5.94685943]
[1746726175474,4.8847573,2047.2,2047.0,0.7858]
[1746726175677,4.8847573,2047.2,2047.0,2.52854332]
[1746726175842,4.88451299,2047.3,2047.0,2.52854332]
[1746726175843,4.88461091,2047.3,2047.0,7.68960275]
[1746726176051,4.88436542,2047.4,2047.0,12.57478836]
[1746726176504,4.88413487,2047.5,2047.1,4.88493552]
[1746726176818,4.88400488,2047.5,2047.2,0.04884148]
[1746726177027,4.88416216,2047.5,2047.2,5.16105943]
[1746726177386,4.88425388,2047.4,2047.2,5.16105943]
[1746726177699,4.88425388,2047.4,2047.2,7.09580114]
[1746726177869,4.88376636,2047.6,2047.2,7.09580114]
[1746726178074,4.88414329,2047.5,2047.2,7.09580114]
[1746726178413,4.88424475,2047.4,2047.2,1.93474171]
[1746726178713,4.8843671,2047.4,2047.1,2.40545605]
[1746726179103,4.88412547,2047.5,2047.1,2.40545605]
[1746726179411,4.88434623,2047.4,2047.1,2.40545605]
[1746726180588,4.88377325,2047.6,2047.1,2.40545605]
[1746726180790,4.88471964,2047.3,2047.0,6.8958]
[1746726181489,4.88495921,2047.1,2047.0,6.8958]
[1746726181656,4.88484645,2047.2,2047.0,13.4878]
[1746726182051,4.88495921,2047.1,2047.0,9.408]
[1746726182259,4.88495921,2047.1,2047.0,12.702]
[1746726182947,4.88495921,2047.1,2047.0,6.592]
[1746726183565,4.88484645,2047.2,2047.0,6.592]
[1746726183757,4.88495921,2047.1,2047.0,6.592]
[1746726186158,4.88385453,2047.6,2047.3,0.8019]
[1746726186357,4.88385453,2047.6,2047.4,5.16105943]
[1746726186553,4.883375,2047.8,2047.5,6.588]
[1746726186894,4.88361324,2047.7,2047.5,6.588]
[1746726187691,4.88376636,2047.6,2047.5,6.588]
[1746726188974,5.69490876,2047.6,2047.5,6.586]
[1746726189173,8.69490876,2047.6,2047.5,6.586]
[1746726189712,8.74364933,2047.6,2047.5,6.586]
[1746726191014,9.29364933,2047.6,2047.5,6.586]
[1746726191376,9.29364933,2047.6,2047.5,3.293]
[1746726195317,4.88519785,2047.0,2046.9,3.293]
[1746726195925,4.93393842,2047.0,2046.9,3.293]
[1746726197891,7.93393842,2047.0,2046.9,3.293]
[1746726203132,4.88504643,2047.1,2046.9,4.0446]
[1746726203133,4.88505781,2047.1,2046.9,4.0446]
[1746726203336,4.88495921,2047.1,2047.0,3.56152981]
[1746726203640,4.88488102,2047.2,2047.0,3.56152981]
[1746726203935,4.88495921,2047.1,2047.0,0.69590773]
[1746726204101,4.88495921,2047.1,2047.0,3.98690773]
[1746726204742,4.88495921,2047.1,2047.0,3.291]
[1746726205037,4.88495921,2047.1,2047.0,3.28464606]
[1746726207040,4.8856752,2046.8,2046.7,0.775]
[1746726207336,4.8856752,2046.8,2046.7,7.359]
[1746726207500,4.88543651,2046.9,2046.7,7.359]
[1746726207501,4.88559822,2046.9,2046.7,7.359]
[1746726207701,4.8856752,2046.8,2046.7,10.37606292]
[1746726207902,0.04874057,2047.1,2046.7,10.37606292]
[1746726208097,4.88508944,2047.1,2046.8,6.03362699]
[1746726208310,4.88508944,2047.1,2046.9,2.05204839]
[1746726208512,4.88486579,2047.2,2046.9,2.05204839]
[1746726209044,4.88432745,2047.4,2047.0,5.94757288]
[1746726209335,4.88451291,2047.3,2047.0,5.94757288]
[1746726209649,4.88451291,2047.3,2047.0,0.7918]
[1746726209650,4.88495921,2047.1,2047.0,0.7918]
[1746726212529,4.88532372,2047.0,2046.8,0.7874]
[1746726212704,4.88532372,2047.0,2046.8,2.83042187]
[1746726212908,4.88487741,2047.2,2046.9,6.583]
[1746726213744,4.8846137,2047.3,2047.0,0.8169]
[1746726213919,4.88428197,2047.4,2047.0,5.70201636]
[1746726214125,0.25394648,2047.6,2047.2,5.6923866]
[1746726214330,4.88381671,2047.6,2047.4,0.8078]
[1746726214523,4.88381671,2047.6,2047.5,6.582]
[1746726214858,4.88400488,2047.5,2047.4,0.8078]
[1746726215041,4.88400488,2047.5,2047.4,7.3898]
[1746726215847,4.88400488,2047.5,2047.1,5.15577288]
[1746726215848,4.88486133,2047.2,2047.1,3.288]
[1746726216462,8.43486133,2047.2,2047.1,3.288]
[1746726216625,9.24066133,2047.2,2047.1,3.288]
[1746726216831,9.2894019,2047.2,2047.1,3.288]
[1746726218240,9.2894019,2047.2,2047.1,2.28365532]
[1746726220540,4.88615264,2046.6,2046.5,20.895]
[1746726222672,4.88605387,2046.7,2046.5,20.895]
[1746726222826,4.88605387,2046.7,2046.6,0.8058]
[1746726224256,4.88615264,2046.6,2046.5,20.895]
[1746726226134,4.88603332,2046.7,2046.5,20.895]
[1746726226446,4.88581563,2046.8,2046.5,24.39831883]
[1746726226645,8.91559607,2047.3,2046.6,5.76575615]
[1746726226881,4.88544589,2046.9,2046.6,0.87975683]
[1746726227436,4.88534804,2047.0,2046.6,0.87975683]
[1746726227666,4.88534804,2047.0,2046.7,3.04338485]
[1746726227869,4.88543651,2046.9,2046.8,0.8031]
[1746726228065,4.88543651,2046.9,2046.8,4.0891]
[1746726228764,4.88615264,2046.6,2046.5,20.895]
[1746726229080,4.88582719,2046.8,2046.5,20.895]
[1746726229379,4.88576832,2046.8,2046.5,20.895]
[1746726229574,4.88591676,2046.7,2046.5,20.895]
[1746726230973,9.77206143,2046.7,2046.5,20.895]
[1746726231139,4.88593319,2046.7,2046.5,20.895]
[1746726231558,3.0,2046.9,2046.5,20.895]
[1746726231764,4.88609005,2046.7,2046.5,20.895]
[1746726231935,4.88615264,2046.6,2046.5,20.895]
[1746726232141,4.88615264,2046.6,2046.5,24.18]
[1746726232578,4.88615264,2046.6,2046.5,20.895]
[1746726232747,7.88615264,2046.6,2046.5,3.288]
[1746726232956,7.93489321,2046.6,2046.5,3.288]
[1746726235585,7.93489321,2046.6,2045.6,22.48752331]
[1746726235586,4.88830229,2045.7,2045.6,24.967]
[1746726235892,4.88830229,2045.7,2045.6,24.172]
[1746726236382,4.88776619,2046.0,2045.6,24.172]
[1746726236552,4.88815774,2045.8,2045.6,27.16002147]
[1746726236947,4.88796377,2045.9,2045.6,27.16002147]
[1746726237147,4.88778628,2046.0,2045.6,27.16002147]
[1746726237148,4.88773993,2046.0,2045.7,0.86937981]
[1746726237357,4.88697152,2046.3,2045.9,0.8205]
[1746726237584,0.30281469,2046.6,2046.0,5.15577288]
[1746726237742,4.88625708,2046.6,2046.2,5.15577288]
[1746726238076,4.88603334,2046.7,2046.3,0.7511]
[1746726238376,4.88618812,2046.6,2046.3,0.7511]
[1746726238551,4.88642132,2046.5,2046.3,0.7511]
[1746726238749,4.88618812,2046.6,2046.3,0.7511]
[1746726238750,4.88632538,2046.6,2046.3,0.7511]
[1746726239075,4.88663017,2046.4,2046.3,0.7511]
[1746726239843,4.88660878,2046.5,2046.3,0.7511]
[1746726239844,4.88654657,2046.5,2046.3,0.7511]
[1746726240048,4.88616752,2046.6,2046.4,3.284]
[1746726240352,4.8871078,2046.2,2046.1,6.573]
[1746726240563,7.93584837,2046.2,2046.1,6.573]
[1746726240870,4.8871078,2046.2,2046.1,6.573]
[1746726241166,7.8871078,2046.2,2046.1,6.573]
[1746726241372,7.93584837,2046.2,2046.1,6.573]
[1746726241682,5.20834026,2046.2,2046.1,6.573]
[1746726242242,4.93584837,2046.2,2046.1,6.573]
[1746726242478,7.93584837,2046.2,2046.1,6.573]
[1746726243947,4.88830229,2045.7,2045.6,20.888]
[1746726244861,7.88734665,2046.1,2045.6,20.888]
[1746726245061,4.88818928,2045.8,2045.6,20.888]
[1746726245262,4.88751288,2046.1,2045.7,0.80618024]
[1746726245570,4.88761167,2046.0,2045.7,0.7573]
[1746726245787,4.88761167,2046.0,2045.8,3.16895112]
[1746726245988,4.88782442,2045.9,2045.8,3.16895112]
[1746726247287,4.88761167,2046.0,2045.8,3.16895112]
[1746726247490,4.88775629,2046.0,2045.8,3.16895112]
[1746726247647,4.88766073,2046.0,2045.8,3.16895112]
[1746726247852,4.88615264,2046.6,2046.0,0.8192]
[1746726248090,4.88722491,2046.2,2046.1,6.566]
[1746726248491,4.93596548,2046.2,2046.1,6.566]
[1746726248857,4.88722491,2046.2,2046.1,6.566]
[1746726253071,4.88675134,2046.4,2046.1,7.3807]
[1746726253390,0.2539475,2047.0,2046.3,0.8147]
[1746726253701,4.88511512,2047.1,2046.7,0.8147]
[1746726253900,4.88511512,2047.1,2046.8,6.61384949]
[1746726254057,4.88522141,2047.0,2046.8,6.565]
[1746726254259,4.88511512,2047.1,2046.8,8.35599681]
[1746726254665,4.88541446,2047.0,2046.8,6.565]
[1746726255676,3.25540126,2047.2,2046.8,6.61385058]
[1746726258816,4.88395614,2047.6,2047.2,5.15577288]
[1746726258980,4.88410878,2047.5,2047.3,6.563]
[1746726259818,4.88419619,2047.5,2047.3,6.563]
[1746726260119,4.88424343,2047.4,2047.3,6.563]
[1746726260303,4.88424343,2047.4,2047.3,3.283]
[1746726260609,4.88424343,2047.4,2047.3,6.563]
[1746726260988,4.88424343,2047.4,2047.3,3.283]
[1746726261312,4.932984,2047.4,2047.3,3.283]
[1746726262174,4.88424343,2047.4,2047.3,3.283]
[1746726262385,4.88412713,2047.5,2047.3,4.0906]
[1746726262797,4.88378125,2047.6,2047.3,4.0906]
[1746726262798,4.88384921,2047.6,2047.3,4.0906]
[1746726263203,4.88401052,2047.5,2047.3,4.0906]
[1746726263520,4.88401052,2047.5,2047.3,5.50371749]
[1746726263827,4.88390212,2047.6,2047.3,5.50371749]
[1746726264037,4.884482,2047.3,2046.9,6.561]
[1746726264326,0.8228,2047.6,2047.0,0.0488468]
[1746726264501,4.88450452,2047.3,2047.1,0.7989]
[1746726264890,4.88472059,2047.2,2047.1,0.7489]
[1746726265716,4.88449587,2047.3,2047.0,6.56]
[1746726265717,4.88495921,2047.1,2047.0,6.56]
[1746726266120,4.88462217,2047.3,2047.0,6.56]
[1746726266331,4.88473225,2047.2,2047.0,6.56]
[1746726266492,4.88473225,2047.2,2047.0,8.22013522]
[1746726267091,4.88463043,2047.3,2047.0,8.22013522]
[1746726267291,4.88437004,2047.4,2047.1,0.04884433]
[1746726267528,4.88457824,2047.3,2047.1,0.04884433]
[1746726267828,4.88472059,2047.2,2047.1,0.04884433]
[1746726268123,4.88472059,2047.2,2047.0,9.04943522]
[1746726268628,4.88368052,2047.7,2047.1,0.90494352]
[1746726268827,0.25386014,2048.0,2047.3,5.6616709]
[1746726269028,4.88291706,2048.0,2047.6,4.88365695]
[1746726269193,4.88291706,2048.0,2047.7,6.559]
[1746726269396,4.88268134,2048.1,2047.7,6.559]
[1746726269693,4.8826008,2048.1,2047.8,5.93307288]
[1746726269922,4.88247267,2048.2,2047.8,10.81624668]
[1746726270514,4.93071652,2048.4,2047.8,5.93307288]
[1746726270515,4.88270689,2048.1,2047.8,5.93307288]
[1746726270715,4.88270689,2048.1,2047.9,3.277]
[1746726270716,4.88296738,2048.0,2047.9,3.277]
[1746726271038,4.88236774,2048.2,2047.9,3.277]
[1746726271838,4.88186513,2048.4,2047.9,3.277]
[1746726272015,4.88277498,2048.1,2047.9,3.277]
[1746726272211,0.04874057,2048.3,2047.9,3.277]
[1746726272418,4.8828125,2048.0,2047.9,3.277]
[1746726273023,4.88272455,2048.1,2047.9,3.277]
[1746726273440,4.8828125,2048.0,2047.9,3.277]
[1746726274309,4.88305093,2047.9,2047.8,0.7773]
[1746726274511,4.88305093,2047.9,2047.8,7.3343]
[1746726274840,4.9317915,2047.9,2047.8,3.281]
[1746726277005,4.88305093,2047.9,2047.8,3.281]
[1746726283753,0.7965,2047.9,2047.7,3.275]
[1746726284542,4.88328938,2047.8,2047.7,3.275]
[1746726284948,4.93202995,2047.8,2047.7,3.275]
[1746726285239,4.88328938,2047.8,2047.7,3.275]
[1746726285445,4.93202995,2047.8,2047.7,3.275]
[1746726286154,4.884482,2047.3,2047.2,0.7943]
[1746726286359,4.884482,2047.3,2047.2,3.275]
[1746726287420,4.88437257,2047.4,2047.2,3.275]
[1746726287853,4.88400693,2047.5,2047.3,0.8295]
[1746726288041,4.88424343,2047.4,2047.3,0.8295]
[1746726289253,4.88424343,2047.4,2047.2,3.275]
[1746726289416,4.884482,2047.3,2047.2,3.275]
[1746726290921,4.93322257,2047.3,2047.2,3.275]
[1746726293257,4.8856752,2046.8,2046.7,18.3954]
[1746726293415,4.8856752,2046.8,2046.7,24.15]
[1746726294030,4.8856752,2046.8,2046.7,18.3954]
[1746726294925,4.8856752,2046.8,2046.7,17.603]
[1746726298868,4.93436177,2046.9,2046.7,17.603]
[1746726299171,4.88456367,2047.3,2046.9,4.88532866]
[1746726299346,4.88456367,2047.3,2047.0,0.7741]
[1746726299547,4.88444514,2047.4,2047.1,6.548]
[1746726299969,1.00430406,2047.8,2047.1,6.548]
[1746726300176,4.88422421,2047.5,2047.1,6.548]
[1746726300468,9.76834048,2047.5,2047.2,1.22072655]
[1746726300769,4.8842574,2047.4,2047.1,6.548]
[1746726301108,4.88414334,2047.5,2047.1,6.548]
[1746726301396,4.8834274,2047.8,2047.4,4.88419504]
[1746726301695,0.25510958,2048.4,2047.9,0.7917]
[1746726301903,8.13821376,2048.0,2047.9,7.3387]
[1746726302191,3.25540126,2048.0,2047.9,7.3387]
[1746726302391,8.13821376,2048.0,2047.9,7.3387]
[1746726303091,3.25540126,2048.0,2047.9,7.3387]
[1746726303392,3.25540126,2048.0,2047.9,18.11139381]
[1746726303890,4.88198944,2048.4,2048.0,4.88273533]
[1746726304098,4.88228587,2048.3,2047.9,13.22834288]
[1746726304281,4.88242703,2048.2,2047.9,8.07257]
[1746726304674,4.88229062,2048.3,2047.9,8.07257]
[1746726304872,4.88229062,2048.3,2047.9,12.9555196]
[1746726305161,3.25540126,2048.5,2047.9,12.9555196]
[1746726305357,4.88222347,2048.3,2047.9,4.79657]
[1746726305567,4.88257409,2048.1,2048.0,6.545]
[1746726305867,4.8824237,2048.2,2048.0,6.545]
[1746726306063,4.88257409,2048.1,2048.0,7.308]
[1746726306464,4.88244721,2048.2,2048.0,7.308]
[1746726306697,4.88227762,2048.3,2048.0,7.308]
[1746726307002,4.88210073,2048.3,2048.0,7.308]
[1746726307187,4.88210073,2048.3,2048.0,7.35682207]
[1746726308185,4.8832188,2047.9,2047.8,6.538]
[1746726308698,4.88296097,2048.0,2047.8,6.538]
[1746726309199,3.0,2048.4,2047.8,7.75582872]
[1746726309390,4.88244721,2048.2,2047.8,7.75582872]
[1746726309595,4.88267202,2048.1,2047.8,7.75582872]
[1746726310465,4.93096439,2048.3,2047.8,7.75582872]
[1746726310699,4.88185901,2048.4,2047.9,1.68747886]
[1746726310866,4.88269952,2048.1,2047.9,0.7874]
[1746726311405,4.8828125,2048.0,2047.9,0.7874]
[1746726311606,4.8828125,2048.0,2047.9,3.268]
[1746726311902,4.88269952,2048.1,2047.9,3.268]
[1746726311903,4.88273131,2048.1,2047.9,3.268]
[1746726312308,4.88273131,2048.1,2047.7,0.7874]
[1746726312479,4.88313199,2047.9,2047.8,3.269]
[1746726312802,4.88283517,2048.0,2047.8,6.537]
[1746726312803,4.88298103,2048.0,2047.8,6.537]
[1746726313367,4.88305093,2047.9,2047.8,6.537]
[1746726315800,4.88292155,2048.0,2047.8,6.537]
[1746726315979,4.88305093,2047.9,2047.8,6.537]
[1746726316168,4.88292155,2048.0,2047.8,6.537]
[1746726316769,4.88276479,2048.1,2047.8,6.537]
[1746726316995,4.88285425,2048.0,2047.8,6.537]
[1746726317168,4.88285425,2048.0,2047.8,7.76268015]
[1746726318203,4.882466,2048.2,2047.9,0.04882869]
[1746726318513,4.88225068,2048.3,2047.9,5.68247558]
[1746726318807,4.88225068,2048.3,2047.9,5.73129927]
[1746726319405,4.8820093,2048.4,2048.0,4.88276647]
[1746726319703,4.88191507,2048.4,2048.1,0.8042]
[1746726319863,4.88172292,2048.5,2048.1,0.8042]
[1746726320068,4.88193695,2048.4,2048.1,0.8042]
[1746726320492,0.25373637,2048.7,2048.2,5.15577288]
[1746726320677,4.88093978,2048.8,2048.4,4.88169416]
[1746726320878,4.88093978,2048.8,2048.3,7.306]
[1746726321080,4.88116736,2048.7,2048.3,8.60098998]
[1746726321281,4.88139092,2048.6,2048.3,8.60098998]
[1746726322171,4.8813119,2048.7,2048.3,13.48307164]
[1746726322484,9.76267728,2048.7,2048.3,13.43425895]
[1746726322801,4.88143613,2048.6,2048.3,8.55217729]
[1746726322981,4.88143613,2048.6,2048.3,8.60099112]
[1746726324713,4.88123141,2048.7,2048.3,13.48297314]
[1746726325014,4.88149772,2048.6,2048.3,8.55217729]
[1746726325175,4.88149772,2048.6,2048.3,8.60099114]
[1746726325808,0.04874057,2048.8,2048.3,8.60099114]
[1746726325979,4.88170074,2048.5,2048.3,7.35481385]
[1746726326179,4.88170074,2048.5,2048.3,7.306]
[1746726326415,4.88153308,2048.6,2048.3,7.306]
[1746726326596,4.88153308,2048.6,2048.3,7.35481385]
[1746726327611,4.88129861,2048.7,2048.3,7.35481385]
[1746726327773,4.8812189,2048.7,2048.3,13.94870486]
[1746726327974,4.8812189,2048.7,2048.3,13.89989101]
[1746726328408,4.88104133,2048.8,2048.4,4.93062498]
[1746726328608,4.88162069,2048.5,2048.3,4.04]
[1746726328812,4.88209734,2048.3,2048.2,3.268]
[1746726329015,4.88209734,2048.3,2047.8,20.857]
[1746726329016,4.88305093,2047.9,2047.8,20.857]
[1746726329202,4.9317915,2047.9,2047.8,20.857]
[1746726329403,4.88305093,2047.9,2047.8,20.857]
[1746726330020,5.64355093,2047.9,2047.8,17.589]
[1746726330213,4.88305093,2047.9,2047.8,17.589]
[1746726331712,4.88305093,2047.9,2047.8,24.121]
[1746726332032,4.9317915,2047.9,2047.8,24.121]
[1746726332190,4.88305093,2047.9,2047.8,24.121]
[1746726334283,4.88305093,2047.9,2047.8,17.589]
[1746726334481,4.88305093,2047.9,2047.8,24.12]
[1746726335994,4.88305093,2047.9,2047.8,17.589]
[1746726336687,5.15578843,2047.9,2047.8,17.589]
[1746726337131,0.7502,2047.7,2047.3,0.8302]
[1746726337283,4.93250693,2047.6,2047.5,3.268]
[1746726337483,4.884482,2047.3,2047.1,0.8123]
[1746726337683,4.884482,2047.3,2047.2,6.532]
[1746726338319,0.04874057,2047.5,2047.2,6.532]
[1746726338492,0.8314,2047.9,2047.3,0.7711]
[1746726338700,4.88366283,2047.7,2047.4,0.04883505]
[1746726339233,4.88348947,2047.8,2047.4,0.04883505]
[1746726339234,4.88315108,2047.9,2047.5,5.65500664]
[1746726339390,4.88315108,2047.9,2047.6,1.13479385]
[1746726339592,4.88315108,2047.9,2047.7,6.526]
[1746726340119,4.88305369,2047.9,2047.7,6.526]
[1746726341329,4.93110279,2048.2,2047.7,6.526]
[1746726341628,4.88409657,2047.5,2047.3,0.8219]
[1746726341836,4.88409657,2047.5,2047.4,6.525]
[1746726342404,4.88392036,2047.6,2047.4,6.525]
[1746726342600,9.76790343,2047.6,2047.4,6.525]
[1746726342805,4.88400488,2047.5,2047.4,6.525]
[1746726343957,4.88392116,2047.6,2047.4,6.525]
[1746726344153,4.88360863,2047.7,2047.4,6.525]
[1746726344433,4.88378842,2047.6,2047.4,7.74815645]
[1746726345433,4.88400488,2047.5,2047.4,7.74815645]
[1746726346340,4.88390586,2047.6,2047.4,7.74815645]
[1746726346853,0.04874057,2047.8,2047.4,7.74815645]
[1746726347011,4.8833662,2047.8,2047.6,0.7824]
[1746726347534,4.88352786,2047.7,2047.6,0.7824]
[1746726349446,4.88352786,2047.7,2047.4,7.3205]
[1746726349447,4.8837671,2047.6,2047.4,7.3205]
[1746726349648,4.88362762,2047.7,2047.4,7.3205]
[1746726350247,9.76736506,2047.7,2047.4,7.3205]
[1746726350447,9.76736506,2047.7,2047.4,9.64045082]